bitfinex/quotes_BTCUSD_20230905
["timestamp","ask_amount","ask_price","bid_price","bid_amount"]
[1693932657163,0.00385933,25768.0,25765.0,0.22147761]
[1693932657315,1.82806609,25768.0,25767.0,0.01561242]
[1693932657940,0.00385933,25767.0,25764.0,0.11355463]
[1693932658144,0.78007333,25767.0,25766.0,0.001]
[1693932658348,0.78007333,25767.0,25764.0,0.11355463]
[1693932659224,2.33247333,25767.0,25764.0,0.11355463]
[1693932659786,2.33547333,25767.0,25764.0,0.11655463]
[1693932660192,2.33647333,25767.0,25766.0,0.008]
[1693932660532,2.7221186,25767.0,25764.0,0.11655463]
[1693932660737,2.7221186,25767.0,25765.0,0.15359013]
[1693932660738,1.1726996,25767.0,25765.0,0.15359013]
[1693932661144,1.1696996,25767.0,25765.0,0.16922021]
[1693932661347,1.1706996,25767.0,25766.0,0.008]
[1693932661545,1.1706996,25767.0,25766.0,0.10132565]
[1693932661773,1.1666996,25767.0,25766.0,0.09332565]
[1693932661924,0.3935046,25767.0,25766.0,0.09632565]
[1693932663162,0.00685933,25767.0,25766.0,0.09632565]
[1693932663783,0.00485933,25767.0,25766.0,0.09632565]
[1693932663974,0.00585933,25767.0,25766.0,0.10432565]
[1693932665993,0.02160518,25767.0,25766.0,0.10432565]
[1693932666459,0.64325797,25767.0,25766.0,0.011]
[1693932666635,2.37232997,25767.0,25766.0,0.011]
[1693932666830,3.14851597,25767.0,25766.0,0.011]
[1693932667060,3.01181597,25767.0,25766.0,0.011]
[1693932667601,2.77680845,25767.0,25766.0,0.011]
[1693932671909,2.75680845,25767.0,25766.0,0.011]
[1693932673969,0.40825045,25767.0,25766.0,0.19838761]
[1693932675244,1.18443645,25767.0,25766.0,0.19838761]
[1693932676813,1.96062245,25767.0,25766.0,0.19838761]
[1693932677610,2.2343017,25767.0,25766.0,0.19838761]
[1693932678337,0.02160518,25767.0,25766.0,0.19838761]
[1693932680541,0.01774585,25767.0,25766.0,1.651272]
[1693932680744,0.01774585,25767.0,25766.0,2.98258666]
[1693932680945,0.01774585,25767.0,25766.0,4.32684348]
[1693932681144,0.01774585,25767.0,25766.0,4.31076348]
[1693932681346,0.001,25767.0,25766.0,4.39068348]
[1693932681572,0.001,25767.0,25766.0,4.40280348]
[1693932681771,0.004,25767.0,25766.0,4.81306348]
[1693932681978,0.004,25767.0,25766.0,4.79338348]
[1693932682177,0.001,25767.0,25766.0,4.78746348]
[1693932682398,0.001,25767.0,25766.0,4.79238348]
[1693932682562,0.001,25767.0,25766.0,4.79730348]
[1693932682804,0.001,25767.0,25766.0,5.49070348]
[1693932683003,0.001,25767.0,25766.0,5.48830348]
[1693932683255,0.15918233,25771.0,25767.0,0.02]
[1693932683575,0.00385933,25770.0,25768.0,2.45831]
[1693932683775,0.01861709,25770.0,25769.0,1.688952]
[1693932683999,0.01861709,25770.0,25769.0,1.801592]
[1693932684200,0.01861709,25770.0,25769.0,1.800032]
[1693932684399,0.01861709,25770.0,25769.0,1.799492]
[1693932684553,0.01861709,25770.0,25769.0,1.799432]
[1693932684751,0.02061709,25770.0,25769.0,1.801412]
[1693932685002,0.02061709,25770.0,25769.0,0.2341]
[1693932685200,0.01961709,25770.0,25769.0,0.006]
[1693932686098,1.57180909,25770.0,25769.0,0.006]
[1693932686304,1.57280909,25770.0,25769.0,0.013]
[1693932687018,2.34890509,25770.0,25769.0,0.013]
[1693932687215,3.07877087,25770.0,25769.0,0.013]
[1693932692385,3.21547087,25770.0,25769.0,0.013]
[1693932693052,3.33547087,25770.0,25769.0,0.013]
[1693932695847,2.99225036,25770.0,25769.0,0.013]
[1693932696050,2.85555036,25770.0,25769.0,0.013]
[1693932696941,2.83555036,25770.0,25769.0,0.013]
[1693932700770,2.77555036,25770.0,25769.0,0.013]
[1693932700973,2.83555036,25770.0,25769.0,0.013]
[1693932701146,3.22219563,25770.0,25769.0,0.013]
[1693932701348,2.83555036,25770.0,25769.0,0.013]
[1693932704246,2.73555036,25770.0,25769.0,0.15125754]
[1693932704470,0.40726236,25770.0,25769.0,0.15125754]
[1693932704693,0.02061709,25770.0,25769.0,0.15125754]
[1693932705095,0.02061709,25770.0,25769.0,0.22151754]
[1693932705300,0.02061709,25770.0,25769.0,0.15125754]
[1693932706114,0.02061709,25770.0,25769.0,0.21779754]
[1693932706448,0.02061709,25770.0,25769.0,0.22919754]
[1693932706648,0.02061709,25770.0,25769.0,0.92738354]
[1693932706878,0.02061709,25770.0,25769.0,1.00964354]
[1693932707052,0.02061709,25770.0,25769.0,1.01894354]
[1693932707187,0.02061709,25770.0,25769.0,1.01234354]
[1693932707552,0.02061709,25770.0,25769.0,0.233198]
[1693932707823,0.02061709,25770.0,25769.0,0.225758]
[1693932708044,0.02061709,25770.0,25769.0,1.101804]
[1693932708213,0.02061709,25770.0,25769.0,1.101864]
[1693932708415,0.02061709,25770.0,25769.0,0.323818]
[1693932708618,0.02061709,25770.0,25769.0,0.315778]
[1693932708843,0.02061709,25770.0,25769.0,0.249898]
[1693932709206,0.02061709,25770.0,25769.0,0.147398]
[1693932711839,0.13253635,25770.0,25769.0,0.147398]
[1693932712643,0.1281606,25770.0,25769.0,0.147398]
[1693932713252,0.51480587,25770.0,25769.0,0.00914046]
[1693932713453,2.94559387,25770.0,25769.0,0.00914046]
[1693932716906,2.96559387,25770.0,25769.0,0.00914046]
[1693932717120,3.38559387,25770.0,25769.0,0.00914046]
[1693932717343,3.40559387,25770.0,25769.0,0.00914046]
[1693932717979,3.40459387,25770.0,25769.0,0.007]
[1693932719113,3.40459387,25770.0,25764.0,0.020099]
[1693932719114,0.00385933,25765.0,25764.0,0.020099]
[1693932719316,3.5979886,25765.0,25764.0,0.020099]
[1693932719745,3.72823964,25765.0,25764.0,0.020099]
[1693932720535,3.64973964,25765.0,25764.0,0.022099]
[1693932720889,3.5194886,25765.0,25764.0,0.022099]
[1693932721099,3.6419886,25765.0,25764.0,0.022099]
[1693932725588,3.6179886,25765.0,25764.0,0.020099]
[1693932725805,3.6179886,25765.0,25764.0,0.021099]
[1693932725806,3.66421474,25765.0,25764.0,0.021099]
[1693932726030,3.68821474,25765.0,25764.0,0.021099]
[1693932726142,4.05086001,25765.0,25764.0,0.020099]
[1693932726342,4.05086001,25765.0,25764.0,0.021099]
[1693932726808,4.07486001,25765.0,25764.0,0.021099]
[1693932727433,4.13486001,25765.0,25764.0,0.021099]
[1693932727670,4.43486001,25765.0,25764.0,0.021099]
[1693932729047,4.41486001,25765.0,25764.0,0.021099]
[1693932735349,4.02821474,25765.0,25764.0,0.021099]
[1693932742328,3.19196874,25765.0,25764.0,0.021099]
[1693932742492,2.80946874,25765.0,25764.0,0.19883239]
[1693932743259,2.80946874,25765.0,25764.0,1.74830911]
[1693932743260,0.07022614,25765.0,25764.0,1.74830911]
[1693932743462,0.07022614,25765.0,25764.0,2.5853512]
[1693932743667,0.07022614,25765.0,25764.0,2.6641912]
[1693932743871,0.07022614,25765.0,25764.0,1.8791552]
[1693932744084,0.07022614,25765.0,25764.0,1.8906152]
[1693932744284,0.04622614,25765.0,25764.0,1.8894952]
[1693932744489,0.04622614,25765.0,25764.0,1.8779752]
[1693932744795,0.02222614,25765.0,25764.0,1.9936152]
[1693932745095,0.004,25765.0,25764.0,2.67530767]
[1693932745326,0.004,25765.0,25764.0,2.68864767]
[1693932745532,0.00385933,25768.0,25765.0,0.02]
[1693932745708,0.00385933,25768.0,25766.0,1.552432]
[1693932745914,0.00385933,25768.0,25766.0,1.54857185]
[1693932746472,0.00385933,25769.0,25766.0,1.54857185]
[1693932746686,0.15918233,25771.0,25768.0,2.43095]
[1693932746886,0.5458276,25771.0,25768.0,1.80945811]
[1693932747088,1.3218976,25771.0,25768.0,1.6548]
[1693932747289,1.3218976,25771.0,25769.0,0.17424742]
[1693932747619,1.3218976,25771.0,25770.0,0.1025]
[1693932747831,1.3218976,25771.0,25769.0,0.27674742]
[1693932748032,0.155323,25771.0,25770.0,0.1025]
[1693932748255,0.155323,25771.0,25770.0,1.654692]
[1693932748432,0.155323,25771.0,25770.0,0.878596]
[1693932749018,0.160323,25771.0,25770.0,0.878596]
[1693932749193,0.159323,25771.0,25770.0,0.878596]
[1693932749327,0.155323,25771.0,25770.0,0.878596]
[1693932749556,0.165323,25771.0,25770.0,0.879596]
[1693932749758,0.177323,25771.0,25770.0,1.655692]
[1693932749966,0.177323,25771.0,25770.0,1.87075178]
[1693932750372,0.177323,25771.0,25770.0,1.86689252]
[1693932751417,0.177323,25771.0,25770.0,1.94657252]
[1693932751617,0.022,25771.0,25770.0,2.72704852]
[1693932751820,0.022,25771.0,25770.0,2.72752852]
[1693932752059,0.022,25771.0,25770.0,2.72848852]
[1693932752201,0.022,25771.0,25770.0,2.72770852]
[1693932752398,0.022,25771.0,25770.0,1.94909252]
[1693932752602,0.022,25771.0,25770.0,1.94873252]
[1693932752823,0.022,25771.0,25770.0,1.94783252]
[1693932753027,0.022,25771.0,25770.0,1.94759252]
[1693932753230,0.022,25771.0,25770.0,2.72704852]
[1693932753567,0.022,25771.0,25770.0,2.73274852]
[1693932753727,0.022,25771.0,25770.0,2.73214852]
[1693932753926,0.022,25771.0,25770.0,2.72710852]
[1693932754148,0.022,25771.0,25770.0,2.72698852]
[1693932754310,0.022,25771.0,25770.0,2.72668852]
[1693932754515,0.022,25771.0,25770.0,2.72596852]
[1693932754716,0.022,25771.0,25770.0,2.72572852]
[1693932755003,0.022,25771.0,25770.0,1.94969252]
[1693932755210,0.022,25771.0,25770.0,1.94933252]
[1693932755408,0.022,25771.0,25770.0,1.97011252]
[1693932755560,0.022,25771.0,25770.0,1.96897252]
[1693932755716,0.022,25771.0,25770.0,2.62266941]
[1693932755920,0.04314164,25771.0,25770.0,2.72928941]
[1693932756240,0.022,25771.0,25770.0,3.41752941]
[1693932756447,0.022,25771.0,25770.0,3.42076941]
[1693932756645,0.04318789,25771.0,25770.0,3.42028941]
[1693932756846,0.04318789,25771.0,25770.0,3.42142941]
[1693932757066,0.04318789,25771.0,25770.0,3.42034941]
[1693932757275,0.02118789,25771.0,25770.0,3.41922941]
[1693932757476,0.02318789,25771.0,25770.0,3.42178941]
[1693932757680,0.002,25771.0,25770.0,3.42286941]
[1693932757870,0.002,25771.0,25770.0,3.42262941]
[1693932758079,0.15913433,25776.0,25773.0,0.02]
[1693932758283,0.155275,25776.0,25774.0,0.878475]
[1693932759018,0.77976433,25777.0,25774.0,1.65445]
[1693932759227,0.024,25776.0,25774.0,1.65445]
[1693932759728,0.048,25776.0,25774.0,1.65645]
[1693932760134,0.024,25776.0,25774.0,1.65445]
[1693932760334,0.045,25776.0,25775.0,0.18040554]
[1693932760539,0.021,25776.0,25775.0,0.18040554]
[1693932760694,0.045,25776.0,25775.0,0.18040554]
[1693932761455,0.021,25776.0,25775.0,0.18040554]
[1693932761614,0.024,25776.0,25775.0,0.18240554]
[1693932761789,0.024,25776.0,25775.0,0.18054688]
[1693932761997,0.048,25776.0,25775.0,0.18054688]
[1693932764877,0.048,25776.0,25775.0,0.004]
[1693932764878,0.823915,25776.0,25775.0,0.004]
[1693932765641,1.36394851,25776.0,25775.0,0.004]
[1693932765846,3.04502462,25776.0,25775.0,0.004]
[1693932767843,2.89549571,25776.0,25775.0,0.004]
[1693932768086,2.8887496,25776.0,25775.0,0.004]
[1693932770819,2.91678034,25776.0,25775.0,0.004]
[1693932771570,2.90988639,25776.0,25775.0,0.004]
[1693932774068,2.91568457,25776.0,25775.0,0.004]
[1693932774482,3.30232984,25776.0,25775.0,0.004]
[1693932776088,3.29653166,25776.0,25775.0,0.004]
[1693932777055,3.30275647,25776.0,25775.0,0.004]
[1693932777253,3.29653166,25776.0,25775.0,0.004]
[1693932778763,3.29653166,25776.0,25775.0,0.00333319]
[1693932780397,3.30263995,25776.0,25775.0,0.00333319]
[1693932781151,3.29653166,25776.0,25775.0,0.00333319]
[1693932781965,3.3023569,25776.0,25775.0,0.00333319]
[1693932782394,2.91571163,25776.0,25775.0,0.00333319]
[1693932785208,3.00837416,25776.0,25775.0,0.00333319]
[1693932786017,2.88587416,25776.0,25775.0,0.00333319]
[1693932786257,2.01729663,25776.0,25775.0,0.00333319]
[1693932787056,1.63065136,25776.0,25775.0,0.00333319]
[1693932788026,1.63065136,25776.0,25775.0,0.94495018]
[1693932788027,0.06913679,25776.0,25775.0,0.94495018]
[1693932788242,0.06913679,25776.0,25775.0,1.78803518]
[1693932788448,0.06913679,25776.0,25775.0,2.67630335]
[1693932788657,0.06913679,25776.0,25775.0,2.68410335]
[1693932788869,0.06913679,25776.0,25775.0,2.70008335]
[1693932789081,0.06913679,25776.0,25775.0,2.69978335]
[1693932789301,0.06913679,25776.0,25775.0,2.70270335]
[1693932789302,0.04513679,25776.0,25775.0,2.70270335]
[1693932789510,0.02513679,25776.0,25775.0,2.69945016]
[1693932789717,0.02513679,25776.0,25775.0,2.69621016]
[1693932789918,0.02713679,25776.0,25775.0,2.68935016]
[1693932790120,0.02713679,25776.0,25775.0,2.68911016]
[1693932790324,0.02113679,25776.0,25775.0,3.38811016]
[1693932790463,0.02113679,25776.0,25775.0,3.38835016]
[1693932790668,0.93748113,25779.0,25775.0,3.38835016]
[1693932790669,0.93748113,25779.0,25776.0,0.02]
[1693932790916,1.71331913,25779.0,25777.0,0.1025]
[1693932791506,1.70692,25779.0,25777.0,0.1025]
[1693932791710,1.79958253,25779.0,25777.0,0.18709507]
[1693932792114,1.79958253,25779.0,25778.0,0.13258744]
[1693932792314,1.82158253,25779.0,25778.0,0.13258744]
[1693932792840,1.83658253,25779.0,25778.0,0.13258744]
[1693932793055,1.81458253,25779.0,25778.0,0.13258744]
[1693932793255,1.81458253,25779.0,25778.0,0.23508744]
[1693932793464,1.79958253,25779.0,25778.0,0.23508744]
[1693932793837,1.82358253,25779.0,25778.0,0.23708744]
[1693932794440,1.84758253,25779.0,25778.0,0.23908744]
[1693932794976,3.54422768,25779.0,25772.0,0.2725]
[1693932795179,0.10635933,25775.0,25772.0,0.2725]
[1693932795384,2.71457027,25774.0,25772.0,0.2725]
[1693932795603,3.49054527,25774.0,25772.0,0.2725]
[1693932795808,3.87344829,25774.0,25772.0,0.26864149]
[1693932797088,3.87644829,25774.0,25772.0,0.26864149]
[1693932797309,3.96929852,25774.0,25772.0,0.26864149]
[1693932797532,3.96929852,25774.0,25770.0,0.02]
[1693932797533,0.19920956,25773.0,25770.0,0.02]
[1693932797744,0.1025,25771.0,25770.0,0.02]
[1693932797946,2.04127727,25771.0,25770.0,0.02]
[1693932798151,3.18695335,25771.0,25770.0,0.02]
[1693932798357,3.08445335,25771.0,25770.0,0.02]
[1693932798570,3.08445335,25771.0,25770.0,0.022]
[1693932799028,3.08445335,25771.0,25770.0,0.02]
[1693932799231,3.23976835,25771.0,25770.0,0.02]
[1693932799647,3.24903898,25771.0,25770.0,0.022]
[1693932800667,3.25203898,25771.0,25770.0,0.022]
[1693932800881,3.27126044,25771.0,25770.0,0.022]
[1693932801504,3.27126044,25771.0,25770.0,0.002]
[1693932802314,3.36411067,25771.0,25770.0,0.002]
[1693932804523,3.36169937,25771.0,25770.0,0.002]
[1693932804739,3.51062449,25771.0,25770.0,0.002]
[1693932806383,3.60044151,25771.0,25770.0,0.002]
[1693932806798,3.50962449,25771.0,25770.0,0.002]
[1693932807414,3.60243767,25771.0,25770.0,0.002]
[1693932807611,3.6095002,25771.0,25770.0,0.002]
[1693932807818,3.20589012,25771.0,25770.0,0.002]
[1693932808021,0.00385933,25770.0,25767.0,0.2503]
[1693932808229,2.81752327,25769.0,25767.0,0.2503]
[1693932809392,2.81952327,25769.0,25767.0,0.2523]
[1693932809999,2.82152327,25769.0,25767.0,0.2523]
[1693932810222,0.00617384,25768.0,25767.0,0.2523]
[1693932810428,1.94513111,25768.0,25767.0,0.2523]
[1693932810838,3.00830808,25768.0,25767.0,0.002]
[1693932811042,3.00830808,25768.0,25764.0,0.274999]
[1693932811043,0.00385933,25766.0,25764.0,0.274999]
[1693932811248,1.93913727,25765.0,25764.0,0.274999]
[1693932811445,1.93913727,25765.0,25764.0,0.4225744]
[1693932811871,1.16289127,25765.0,25764.0,0.4225744]
[1693932812495,1.16489127,25765.0,25764.0,0.4245744]
[1693932812806,0.002,25765.0,25764.0,0.4245744]
[1693932813145,0.002,25765.0,25764.0,1.2008504]
[1693932813544,0.002,25765.0,25764.0,1.2688904]
[1693932813749,0.004,25765.0,25764.0,2.0427064]
[1693932813991,0.004,25765.0,25764.0,2.0470264]
[1693932814203,0.004,25765.0,25764.0,2.8461624]
[1693932814351,0.004,25765.0,25764.0,2.8404024]
[1693932814553,0.004,25765.0,25764.0,2.8399824]
[1693932814803,0.004,25765.0,25764.0,2.8396824]
[1693932815003,0.004,25765.0,25764.0,2.8397424]
[1693932815212,0.004,25765.0,25764.0,2.8389624]
[1693932815420,0.004,25765.0,25764.0,2.8378224]
[1693932815570,0.004,25765.0,25764.0,2.8367424]
[1693932815777,0.01994401,25765.0,25764.0,2.8362024]
[1693932815982,0.01994401,25765.0,25764.0,2.0596864]
[1693932816186,0.004,25765.0,25764.0,2.0593264]
[1693932816490,0.01993042,25765.0,25764.0,2.0440864]
[1693932816690,0.01993042,25765.0,25764.0,2.0490064]
[1693932816895,0.01993042,25765.0,25764.0,2.0431264]
[1693932817097,0.01993042,25765.0,25764.0,2.0427064]
[1693932817322,0.01993042,25765.0,25764.0,1.9771264]
[1693932817757,0.01993042,25765.0,25764.0,2.0437864]
[1693932817945,0.01993042,25765.0,25764.0,2.0428864]
[1693932818121,0.01993042,25765.0,25764.0,2.0433664]
[1693932818332,0.01993042,25765.0,25764.0,2.0475664]
[1693932818553,0.01993042,25765.0,25764.0,2.0457664]
[1693932818755,0.01993042,25765.0,25764.0,2.0463064]
[1693932818982,0.01993042,25765.0,25764.0,2.0460664]
[1693932819194,0.01993042,25765.0,25764.0,2.0458864]
[1693932819380,0.01993042,25765.0,25764.0,2.0456464]
[1693932819604,0.01993042,25765.0,25764.0,2.0454064]
[1693932819806,0.01993042,25765.0,25764.0,2.0467864]
[1693932820008,0.01993042,25765.0,25764.0,2.0572264]
[1693932820215,0.01993042,25765.0,25764.0,3.6439224]
[1693932820419,0.004,25765.0,25764.0,3.6435024]
[1693932820624,0.004,25765.0,25764.0,3.6432024]
[1693932820824,0.01993984,25765.0,25764.0,3.6429624]
[1693932821024,0.01993984,25765.0,25764.0,3.6429024]
[1693932821250,0.01993984,25765.0,25764.0,3.6420024]
[1693932821382,0.01993984,25765.0,25764.0,3.6418824]
[1693932821594,0.01993984,25765.0,25764.0,3.6416424]
[1693932821798,0.01993984,25765.0,25764.0,3.6415824]
[1693932821998,0.01993984,25765.0,25764.0,3.6412224]
[1693932822194,0.01993984,25765.0,25764.0,3.515987]
[1693932822396,0.01993984,25765.0,25764.0,3.558487]
[1693932822576,0.01993984,25765.0,25764.0,4.83265445]
[1693932822779,0.01993984,25765.0,25764.0,4.83841445]
[1693932823146,0.004,25765.0,25764.0,4.83757445]
[1693932823345,0.004,25765.0,25764.0,5.33976039]
[1693932823552,0.004,25765.0,25764.0,5.78642039]
[1693932823755,0.004,25765.0,25764.0,5.84338039]
[1693932823887,0.004,25765.0,25764.0,6.13390039]
[1693932824102,0.004,25765.0,25764.0,6.13306039]
[1693932824310,0.004,25765.0,25764.0,6.13030039]
[1693932824731,0.004,25765.0,25764.0,6.13090039]
[1693932824931,0.004,25765.0,25764.0,6.15574039]
[1693932825142,0.004,25765.0,25764.0,6.15766039]
[1693932825390,0.004,25765.0,25764.0,6.15730039]
[1693932825588,0.004,25765.0,25764.0,6.16018039]
[1693932825819,0.00385933,25772.0,25768.0,0.02]
[1693932825943,0.00385933,25772.0,25771.0,0.1025]
[1693932826315,0.00385933,25772.0,25771.0,1.654608]
[1693932826485,0.02554735,25772.0,25771.0,1.654608]
[1693932827064,0.02654735,25772.0,25771.0,2.354608]
[1693932828186,0.03282035,25772.0,25771.0,2.355608]
[1693932828594,0.04882035,25772.0,25771.0,2.35374889]
[1693932829651,0.04882035,25772.0,25771.0,1.65374889]
[1693932831083,0.04496102,25772.0,25771.0,3.17843212]
[1693932831255,0.04496102,25772.0,25771.0,2.48066612]
[1693932831458,0.04496102,25772.0,25771.0,2.47580612]
[1693932831657,0.04496102,25772.0,25771.0,0.703]
[1693932831658,2.37306902,25772.0,25771.0,0.703]
[1693932831858,2.38022718,25772.0,25771.0,0.703]
[1693932832036,2.38022718,25772.0,25771.0,0.003]
[1693932832258,2.42312518,25772.0,25771.0,0.003]
[1693932832833,2.81362978,25772.0,25771.0,0.003]
[1693932833078,2.90897162,25772.0,25771.0,0.003]
[1693932833284,3.06427262,25772.0,25771.0,0.003]
[1693932834495,3.07143835,25772.0,25771.0,0.003]
[1693932834857,3.06427262,25772.0,25771.0,0.003]
[1693932836352,3.15701794,25772.0,25771.0,0.003]
[1693932837075,3.16280194,25772.0,25771.0,0.003]
[1693932837275,3.15701794,25772.0,25771.0,0.003]
[1693932838415,3.30267135,25772.0,25771.0,0.003]
[1693932839366,3.20992603,25772.0,25771.0,0.003]
[1693932840352,3.39541668,25772.0,25771.0,0.003]
[1693932841155,3.35251868,25772.0,25771.0,0.003]
[1693932841553,3.16049261,25772.0,25771.0,0.003]
[1693932841755,3.34598326,25772.0,25771.0,0.003]
[1693932842570,3.20686527,25772.0,25771.0,0.003]
[1693932843166,3.21296431,25772.0,25771.0,0.003]
[1693932843784,3.40860437,25772.0,25771.0,0.003]
[1693932843986,3.21296431,25772.0,25771.0,0.003]
[1693932844203,3.20686527,25772.0,25771.0,0.003]
[1693932846534,3.43872858,25772.0,25771.0,0.003]
[1693932847410,3.04137462,25772.0,25771.0,0.003]
[1693932848269,3.02537462,25772.0,25771.0,0.001]
[1693932848465,3.41201989,25772.0,25771.0,0.001]
[1693932848804,3.43601989,25772.0,25771.0,0.002]
[1693932849009,3.42301989,25772.0,25771.0,0.001]
[1693932849214,3.91941989,25772.0,25771.0,0.001]
[1693932850206,3.94341989,25772.0,25771.0,0.002]
[1693932850587,4.22165587,25772.0,25771.0,0.002]
[1693932851220,4.22165587,25772.0,25764.0,0.020099]
[1693932851221,0.00385933,25765.0,25764.0,0.020099]
[1693932851444,3.4954886,25765.0,25764.0,0.020099]
[1693932851645,3.97663969,25765.0,25764.0,0.020099]
[1693932852029,3.99385765,25765.0,25764.0,0.020099]
[1693932852867,3.62110696,25765.0,25764.0,0.020099]
[1693932853513,3.62310696,25765.0,25764.0,0.031099]
[1693932854281,3.62510696,25765.0,25764.0,0.038099]
[1693932858839,3.62510696,25765.0,25764.0,0.03143837]
[1693932860103,0.41172256,25765.0,25764.0,0.03143837]
[1693932860327,0.02121796,25765.0,25764.0,0.09375672]
[1693932860553,0.02507729,25765.0,25764.0,0.15963672]
[1693932860753,0.02507729,25765.0,25764.0,0.15951672]
[1693932860929,0.02507729,25765.0,25764.0,0.09375672]
[1693932861404,0.02507729,25765.0,25764.0,0.94029272]
[1693932861612,0.02507729,25765.0,25764.0,0.94599272]
[1693932861812,0.02507729,25765.0,25764.0,0.94761272]
[1693932862015,0.02507729,25765.0,25764.0,0.94725272]
[1693932862226,0.02121796,25765.0,25764.0,1.72268872]
[1693932862433,0.02121796,25765.0,25764.0,1.84768872]
[1693932862645,0.02121796,25765.0,25764.0,1.84978872]
[1693932862869,0.02121796,25765.0,25764.0,3.32612472]
[1693932863078,0.02121796,25765.0,25764.0,3.33326472]
[1693932863311,0.004,25765.0,25764.0,3.29664637]
[1693932863519,0.004,25765.0,25764.0,3.30876637]
[1693932863704,0.004,25765.0,25764.0,3.31182637]
[1693932863950,0.01988621,25765.0,25764.0,4.4442494]
[1693932864154,0.01988621,25765.0,25764.0,3.32594637]
[1693932864360,0.004,25765.0,25764.0,3.32738637]
[1693932864567,0.004,25765.0,25764.0,3.50432945]
[1693932864776,0.004,25765.0,25764.0,3.49238945]
[1693932864970,0.01989271,25765.0,25764.0,3.49160945]
[1693932865129,0.01989271,25765.0,25764.0,3.49058945]
[1693932865346,0.01989271,25765.0,25764.0,3.49190945]
[1693932865561,0.01989271,25765.0,25764.0,3.49172945]
[1693932865735,0.01989271,25765.0,25764.0,3.49154945]
[1693932865932,0.01989271,25765.0,25764.0,3.49220945]
[1693932866312,0.01989271,25765.0,25764.0,3.49052945]
[1693932866497,0.01989271,25765.0,25764.0,3.48974945]
[1693932866736,0.01989271,25765.0,25764.0,3.48944945]
[1693932866937,0.01989271,25765.0,25764.0,3.48896945]
[1693932867150,0.01989271,25765.0,25764.0,3.48866945]
[1693932867356,0.01989271,25765.0,25764.0,3.48926945]
[1693932867556,0.01989271,25765.0,25764.0,0.03143837]
[1693932868200,0.02718294,25765.0,25764.0,0.03143837]
[1693932868405,1.84393726,25765.0,25764.0,0.03143837]
[1693932868613,3.00682853,25765.0,25764.0,0.03143837]
[1693932880434,2.84892554,25765.0,25764.0,0.03143837]
[1693932891454,2.9416688,25765.0,25764.0,0.03143837]
[1693932891674,2.1654228,25765.0,25764.0,0.03143837]
[1693932892257,2.9416688,25765.0,25764.0,0.03143837]
[1693932894123,3.08078369,25765.0,25764.0,0.03143837]
[1693932895401,3.29207668,25765.0,25764.0,0.03143837]
[1693932897262,3.07257469,25765.0,25764.0,0.03143837]
[1693932897459,3.07704639,25765.0,25764.0,0.03143837]
[1693932902480,2.98430313,25765.0,25764.0,0.03143837]
[1693932904743,2.9770129,25765.0,25764.0,0.03143837]
[1693932904946,3.02338451,25765.0,25764.0,0.03143837]
[1693932905196,3.64188793,25765.0,25764.0,0.03143837]
[1693932905726,3.45640143,25765.0,25764.0,0.03143837]
[1693932905930,3.22454328,25765.0,25764.0,0.03143837]
[1693932906370,3.45672433,25765.0,25764.0,0.02443837]
[1693932906576,3.22454328,25765.0,25764.0,0.02443837]
[1693932906750,3.45670303,25765.0,25764.0,0.01343837]
[1693932907113,3.22654328,25765.0,25764.0,0.02543837]
[1693932907320,3.45869921,25765.0,25764.0,0.02543837]
[1693932908327,3.46069921,25765.0,25764.0,0.03243837]
[1693932908824,3.45869921,25765.0,25764.0,0.02543837]
[1693932909248,3.46069921,25765.0,25764.0,0.03243837]
[1693932909668,3.46071684,25765.0,25764.0,0.03243837]
[1693932909842,3.22854328,25765.0,25764.0,0.03243837]
[1693932911454,2.84727856,25765.0,25764.0,0.03243837]
[1693932911704,2.84189801,25765.0,25764.0,0.03243837]
[1693932912220,3.07410564,25765.0,25764.0,0.03243837]
[1693932913570,2.84189801,25765.0,25764.0,0.03243837]
[1693932914382,2.8488854,25765.0,25764.0,0.03243837]
[1693932914590,3.23553067,25765.0,25764.0,0.03243837]
[1693932914798,3.22854328,25765.0,25764.0,0.03243837]
[1693932915432,2.88189801,25765.0,25764.0,0.03243837]
[1693932915634,3.58262779,25765.0,25764.0,0.03243837]
[1693932916394,3.57862779,25765.0,25764.0,0.01343837]
[1693932916786,3.60262779,25765.0,25764.0,0.01443837]
[1693932917173,3.57862779,25765.0,25764.0,0.01343837]
[1693932917489,3.98927306,25765.0,25764.0,0.01443837]
[1693932917628,4.01327306,25765.0,25764.0,0.01543837]
[1693932918155,3.98927306,25765.0,25764.0,0.01443837]
[1693932918361,0.02385933,25761.0,25760.0,0.020099]
[1693932918561,4.05143491,25761.0,25760.0,0.020099]
[1693932918766,4.79322553,25761.0,25760.0,0.020099]
[1693932918968,4.81647134,25761.0,25760.0,0.020099]
[1693932919143,5.04850352,25761.0,25760.0,0.020099]
[1693932919502,5.04844121,25761.0,25760.0,0.020099]
[1693932919670,5.2340144,25761.0,25760.0,0.020099]
[1693932919993,5.4134264,25761.0,25760.0,0.020099]
[1693932920416,5.0830706,25761.0,25760.0,0.020099]
[1693932920860,5.22222173,25761.0,25760.0,0.020099]
[1693932921414,5.0830706,25761.0,25760.0,0.020099]
[1693932922061,5.22218351,25761.0,25760.0,0.020099]
[1693932922247,5.1070706,25761.0,25760.0,0.021099]
[1693932922443,5.44723486,25761.0,25760.0,0.021099]
[1693932923234,5.42323486,25761.0,25760.0,0.020099]
[1693932923415,5.53996123,25761.0,25760.0,0.021099]
[1693932924040,5.3768606,25761.0,25760.0,0.020099]
[1693932924250,5.3528606,25761.0,25760.0,0.020099]
[1693932924458,5.3768606,25761.0,25760.0,0.020099]
[1693932924670,5.50875515,25761.0,25760.0,0.020099]
[1693932924873,5.36966297,25761.0,25760.0,0.020099]
[1693932925293,5.39366297,25761.0,25760.0,0.021099]
[1693932925711,5.36966297,25761.0,25760.0,0.020099]
[1693932926116,5.376343,25761.0,25760.0,0.021099]
[1693932926522,5.39366297,25761.0,25760.0,0.021099]
[1693932926955,5.40045601,25761.0,25760.0,0.021099]
[1693932927928,5.01381074,25761.0,25760.0,0.021099]
[1693932928549,4.99381074,25761.0,25760.0,0.021199]
[1693932928711,3.82472582,25761.0,25760.0,0.021199]
[1693932932728,3.82984253,25761.0,25760.0,0.021199]